{"text_format":"1","workbook":"xlsx","n_sheets":13,"sheets":["1_Cartiglio ","2_INDICE","3_SCHEMA","4-INFORMAZIONI ","5- RISULTATI AZIONI","6-VdR_PdM","7-VdR_processo","8-OPPORTUNITA","9-VERIFICA PARTE TERZA_BOZZA ","Foglio2","Foglio1","modifiche","RIASSUNTO"],"not_rendered":{"charts":0,"images":2,"macros":1,"external_links":10,"defined_names":293,"comments":1,"pivot_tables":0},"unopened":[],"bounds":{"document_bytes":16777216,"sheet_cells":100000,"rows_first":2000,"rows_last":500,"rows_between":2000,"halvings":0,"cell_chars":16384,"cell_head_chars":4096},"cells_cut":0,"cells_raw":0,"read":"whole","date_system":"1900"}

{"sheet":"1_Cartiglio ","index":0,"n_rows":41,"n_cols":18,"rows_kept":41,"cut":false,"hidden":false,"merged":[[35,1,35,18],[36,1,36,18],[42,1,42,6],[77,0,77,6],[0,0,4,1],[0,2,1,16],[0,17,4,18],[3,2,4,16],[21,1,22,18],[24,1,25,18],[27,1,28,18],[2,2,2,16],[5,2,5,18],[13,1,13,18],[18,1,18,18],[33,1,33,18]]}
[null,null,"Valutazione del Rischio (VdR)",null,null,null,null,null,null,null,null,null,null,null,null,null,null,{"$f":"A8&\"                                    Pagina \"&B9&\"  di \"&B10&\"                                         \"&A11&B11&\"                                    \"&A12&B12","v":"Appr. LNR-BM_ITA                                    Pagina 1  di 9                                         Revisione n.3                                    Data:22/10/2025"}]
[]
[null,null,"LINEE GUIDA NAZIONALI"]
[null,null,"Molluschi Bivalvi Vivi"]
[]
[]
[]
["Appr. LNR-BM_ITA"]
["Pagina Corrente",1]
["Pagine totali",9]
["Revisione n.",3]
["Data:","22/10/2025"]
[]
["Motivazione revisione: ","MODIFICATO FOGLIO 3 modificata la definizione di RISCHIO MEDIO-aggiunta una opzione \"non applicabile\"nel menu a tendina di FOGLIO 7-VDR PROCESSO (I28, I29, I31, I32, I33, I34, I64, I130)-corretta la parte di assegnazione risultato-FOGLIO 8-OPPORTUNITA (modifciate celle H58-sostituito i termini con \"ultimi 6 mesi\"; \"ultimo anno\"; celle H15, H16, H17 aggiunto una opzione \"non applicabile!; e modificato foglio1 D10:J14-modificata cella H57 aggiunta opzione \"non applicabile\"-corretta parte di attribuzione valore-cella H59 aggiunta opzione \"non applicabile\"-CELLA C14 sostituito termine \"disponibili\" cvon \"utilizzabili\"-FOGLIO 8-OPPORTUNITA' aggiunta opzione cella H33 realtiva al erafforzamento frequenza di campionameno fitoplancton"]
["OGGETTO","la presente valutazione di rischio si applica in conformità al Reg UE 2019/627 TITOLO V, CAPO I articolo 61"]
[]
["DETTAGLI","in particolare vengono presi in considerazione le attività atte a garantire il rispetto dei requisiti di cui ai commi 3, 4, 5, 6,7"]
[]
["OBIETTIVO "]
["Definizione di RISCHIO"]
[]
["RISCHIO BASSO","IL pdM rispecchia  i requisiti cogenti e garantisce la TUTELA DEL CONSUMATORE FINALE  "]
[]
[]
["RISCHIO MEDIO","il PdM rispetta i requisiti cogenti e garantisce la tutela dei consumatori, a fronte di attività suppletive attuate dalla AC per la corretta gestione del rischio\n"]
[]
[]
["RISCHIO ELEVATO","IL pdM NON rispecchia  i requisiti cogenti e NON GARANTISCE la TUTELA DEL CONSUMATORE FINALE "]
[]
[]
["VALUTAZIONE DEL RISCHIO"]
[]
["valutazione del rischio associato alla stesura del PdM","il rischio viene calcolato sulla base di criteri oggettivi e valuta i requisiti e le caratteristiche delle aree indagate, e la natura dei MBV"]
["valutazione del rischio associato alla APPLICAZIONE del PdM-VdR PROCESSO","il rischio viene calcolato sulla base di informazioni rigardo le modalità di definizione dei punti di campionamento, la tipologia delle aree investigate, le modalità di campionamento adottate, il rischio legato al personale incaricato del campionamento, il rischio legato alla qualità del dato finale."]
[]
["OPPORTUNITA","sulla base dell' art. 61, comma 4 lettera a) del Reg UE 2019/627, è possibile adottare frequenze di campionamento diverse rispetto a quelle indicate; questo è possibile presentando una VdR che dimostra un rischio basso di episodi tossici"]
[null,"alla voce \"OPPORTUNITA\" vengono valutate le modalità di riduzione del rischio associato a un PdM che adotta frequenze di campionamento ridotte rispetto a quelle indicate nel Reg UE 2019/627  mediante :"]
[null,1,"utilizzo di dati storici relativi all'area in questione per la pianificazione del PdM e delle frequenze di campionamento"]
[null,2,"utilizzo di un sistema di Early Warning per la intercettazione dell'evento tossico"]
[]
["compilato da","Sonia Dall'Ara"]

{"sheet":"2_INDICE","index":1,"n_rows":21,"n_cols":9,"rows_kept":21,"cut":false,"hidden":false,"merged":[[5,1,5,5],[0,5,4,5],[29,1,29,2],[29,4,29,5],[0,1,4,1],[1,2,2,4],[3,2,4,4],[10,2,10,4],[11,2,11,4],[12,2,12,4],[13,2,13,4],[14,2,14,4],[0,2,0,4],[7,2,7,4],[8,2,8,4],[9,2,9,4]]}
[null,null,{"$f":"'1_Cartiglio '!C1:Q2","v":"Valutazione del Rischio (VdR)"},null,null,{"$f":"'1_Cartiglio '!$A$8&\"                                    Pagina \"&I2&\"  di \"&'1_Cartiglio '!$B$10&\"                                        \"&'1_Cartiglio '!$A$11&'1_Cartiglio '!$B$11&\"                                  \"&'1_Cartiglio '!$A$12&'1_Cartiglio '!$B$12&\"\"","v":"Appr. LNR-BM_ITA                                    Pagina 2  di 9                                        Revisione n.3                                  Data:22/10/2025"}]
[null,null,{"$f":"'1_Cartiglio '!C3:Q3","v":"LINEE GUIDA NAZIONALI"},null,null,null,null,null,2]
[]
[null,null,{"$f":"'1_Cartiglio '!C4:Q5","v":"Molluschi Bivalvi Vivi"}]
[]
[null,"INDICE"]
[]
[null,"FOGLIO","DESCRIZIONE",null,null,"pagina"]
[null,"SCHEMA","indicazione del procedimento da seguire per l'applicazione della valitazione di RISCHIO",null,null,3]
[null,"INFORMAZIONI","parte da compilare a cura del soggetto che ha predisposto il Piano di Monitoraggio",null,null,4]
[null,"RISULTATI-AZIONI","RIASSUNTI I RISULTATI DELLE VALUTAZIONI DI CUI ALLE PAG. 6-7-8",null,null,5]
[null,"VdR-PdM","da compilare per la definizione del RISCHIO_ valutazione di rischio del Piano di Monitoraggio",null,null,6]
[null,"VdR_PROCESSO","da compilare per la definizione del RISCHIO_valutazione di rischio del Processo",null,null,7]
[null,"OPPORTUNITA'","da compilare_valutazione mitigazione del rischio con la predisposizione di opportuni meccanismi di controllo-prevenzione e mitigazione del rischio",null,null,8]
[null,"VERIFICA DA PARTE TERZA","da compilare a cura di ente terzo_per la CONVALIDA della valutazione di rischio",null,null,9]
[]
[null,"LEGENDA: "]
[null,"MBV= MOLLUSCHI BIVALVI VIVI"]
[null,"BM= BIOTOSSINE MARINE"]
[null,"VdR= VALUTAZIONE DEL RISCHIO"]
[null,"PdM= PIANO DI MONITORAGGIO/MONITORAGGIO"]

{"sheet":"3_SCHEMA","index":2,"n_rows":101,"n_cols":10,"rows_kept":101,"cut":false,"hidden":false,"merged":[[14,4,104,4],[5,1,5,8],[0,1,4,1],[0,7,4,8],[0,2,0,6],[1,2,2,6],[3,2,4,6]]}
[null,null,{"$f":"'1_Cartiglio '!C1:Q2","v":"Valutazione del Rischio (VdR)"},null,null,null,null,{"$f":"'1_Cartiglio '!$A$8&\"                                    Pagina \"&J2&\"  di \"&'1_Cartiglio '!$B$10&\"                                        \"&'1_Cartiglio '!$A$11&'1_Cartiglio '!$B$11&\"                                  \"&'1_Cartiglio '!$A$12&'1_Cartiglio '!$B$12&\"\"","v":"Appr. LNR-BM_ITA                                    Pagina 3  di 9                                        Revisione n.3                                  Data:22/10/2025"}]
[null,null,{"$f":"'1_Cartiglio '!C3:Q3","v":"LINEE GUIDA NAZIONALI"},null,null,null,null,null,null,3]
[]
[null,null,{"$f":"'1_Cartiglio '!C4:Q5","v":"Molluschi Bivalvi Vivi"}]
[]
[null,"SCHEMA"]
[]
[]
[]
[]
[]
[]
[]
[]
[]
[]
[]
[]
[]
[]
[]
[]
[]
[]
[]
[]
["TIPOLOGIA        DI RISCHIO"]
[]
[]
[]
[]
[]
[]
[]
[]
["RISULTATO"]
[]
[]
[]
[]
[]
[]
[]
["AZIONI _1"]
[]
[]
[]
[]
[]
[]
[]
["TEMPISTICHE"]
[]
[]
[]
[]
[]
[]
[]
[null,null,"ENTRO 6 MESI DALLA ATTUAZIONE DEL PdM o in tempi più brevi","IMMEDIATE: rivedere il PdM all'evidenziarsi del RISCHIO"]
[]
[]
[]
[]
[]
["AZIONI CORRETTIVE"]
[]
[]
[]
[]
[]
[]
[]
[]
[]
[]
[]
["VALUTAZIONE"]
[]
[]
[]
[]
[]
[]
[]
["AZIONI_2"]
[]
[]
[]
[]
[]
[]
[]
[]
[]
["CONTROLLO"]
[]
[]
[]
[]
["TEMPISTICA"]

{"sheet":"4-INFORMAZIONI ","index":3,"n_rows":19,"n_cols":9,"rows_kept":19,"cut":false,"hidden":false,"merged":[[0,2,0,5],[5,1,5,6],[6,2,6,6],[7,2,7,6],[8,2,8,6],[0,1,4,1],[0,6,4,6],[1,2,2,5],[3,2,4,5],[9,2,9,6],[10,2,10,6],[11,2,11,6],[12,2,12,6],[13,2,13,6],[14,2,14,6],[15,2,15,6],[16,2,16,6],[17,2,17,6],[18,2,18,6]]}
[null,null,{"$f":"'1_Cartiglio '!C1:Q2","v":"Valutazione del Rischio (VdR)"},null,null,null,{"$f":"'1_Cartiglio '!$A$8&\"                                    Pagina \"&I2&\"  di \"&'1_Cartiglio '!$B$10&\"                                        \"&'1_Cartiglio '!$A$11&'1_Cartiglio '!$B$11&\"                                  \"&'1_Cartiglio '!$A$12&'1_Cartiglio '!$B$12&\"\"","v":"Appr. LNR-BM_ITA                                    Pagina 4  di 9                                        Revisione n.3                                  Data:22/10/2025"}]
[null,null,{"$f":"'1_Cartiglio '!C3:Q3","v":"LINEE GUIDA NAZIONALI"},null,null,null,null,null,4]
[]
[null,null,{"$f":"'1_Cartiglio '!C4:Q5","v":"Molluschi Bivalvi Vivi"}]
[]
[null,"INFORMAZIONI GENERALI (DA COMPILARE)"]
[null,"IDENTIFICAZIONE DELLA AREA ",null,null,null,null,null,{"$f":"C7","v":0}]
[null,"TIPOLOGIA DI IMPIANTO",null,null,null,null,null,{"$f":"C8","v":0}]
[null,"STAGIONALITA",null,null,null,null,null,0]
[null,"classificazione AREA",null,null,null,null,null,0]
["A","per AREA OMOGENEA                       (elencare le STAZIONI)",null,null,null,null,null,0]
[null,"TIPOLOGIA DI ALLEVAMENTO",null,null,null,null,null,0]
[null,"data",null,null,null,null,null,"00:00:00"]
[null,"compilato da",null,null,null,null,null,0]
[null,"validato da",null,null,null,null,null,0]
[null,"REVISIONE n",0,null,null,null,null,0]
[null,"data",null,null,null,null,null,"00:00:00"]
[null,"CAUSA MODIFICA/REVISIONE (dettagliare le motivazioni della revisione)"]
[null,"requisiti minimi","ANALISI DI FITOPLANCTON TOSSICO E BIOTOSSINE REGOLAMENTATE     AI SENSI DEL REG 853/2004 e Reg UE 2017/625 e ss.mm.ii. "]

{"sheet":"5- RISULTATI AZIONI","index":4,"n_rows":39,"n_cols":19,"rows_kept":39,"cut":false,"hidden":false,"merged":[[18,1,18,12],[19,1,19,12],[10,1,10,4],[11,1,11,4],[11,5,11,7],[11,8,11,12],[12,8,12,9],[6,1,6,12],[7,1,7,12],[8,1,8,12],[9,7,9,12],[17,1,17,12],[35,1,37,1],[0,12,4,12],[1,2,2,11],[3,2,4,11],[30,1,30,12],[33,3,33,4],[34,3,34,4],[0,1,4,1],[32,1,34,1],[20,1,20,12],[26,1,26,12],[29,1,29,12],[15,5,15,12],[16,1,16,12],[27,2,27,6],[0,2,0,11]]}
[null,null,{"$f":"'1_Cartiglio '!C1:Q2","v":"Valutazione del Rischio (VdR)"},null,null,null,null,null,null,null,null,null,{"$f":"'1_Cartiglio '!$A$8&\"                                    Pagina \"&O2&\"  di \"&'1_Cartiglio '!$B$10&\"                                        \"&'1_Cartiglio '!$A$11&'1_Cartiglio '!$B$11&\"                                  \"&'1_Cartiglio '!$A$12&'1_Cartiglio '!$B$12&\"\"","v":"Appr. LNR-BM_ITA                                    Pagina 5  di 9                                        Revisione n.3                                  Data:22/10/2025"}]
[null,null,{"$f":"'1_Cartiglio '!C3:Q3","v":"LINEE GUIDA NAZIONALI"},null,null,null,null,null,null,null,null,null,null,null,5]
[]
[null,null,{"$f":"'1_Cartiglio '!C4:Q5","v":"Molluschi Bivalvi Vivi"}]
[]
[]
[null,"RISULTATI VALUTAZIONE DI RISCHIO"]
[null,"Definizione Piano di Monitoraggio "]
[null,"vengono riassunti i RISULTATI della elaborazione di cui al foglio 6-Vdr_PdM"]
[null,"Vdr-PdM relativo a",{"$f":"\"Area \"&'4-INFORMAZIONI '!H7","v":"Area 0"},"data",{"$f":"'4-INFORMAZIONI '!C13","v":"00:00:00"},"Rev",{"$f":"\"rev \"&'4-INFORMAZIONI '!H16","v":"rev 0"},{"$f":"\"compilata da \"&'4-INFORMAZIONI '!H14","v":"compilata da 0"}]
[]
[null,"DATI ELABORAZIONE VdR piano di campionamento",null,null,null,"Opportunità",null,null,"Valutazione nel tempo (F1-OPPORTUNITA)",null,null,null,null,null,null,"ALERT","ATTENZIONE_EARLY WARNING NON EFFICACE","OCCORRE ESAMINARE IL PROCESSO ED INDIVIDUARE I PUNTI CRITICI ","effettuare il riesame del processo e dei sistemi di early warning entro 7 gg                                                                                                                                                         Nota: verificare la causa della intossicazione"]
[null,"RISCHIO VALUTATO DA PdM pianficazione e frequenza taratura (P1)","stima del rischio PdM (P2)","Specie campionata (P3)","COMPLESSIVA (compresi altri fattori) P1-P2-P3","RIDUZIONE DEL RISCHIO (O3)","rivalutazione del RISCHIO","CLASSIFICAZIONE RISCHIO dopo attivzzione delle OPPORTUNITA'","VALUTAZIONE NEL TEMPO",null,"CLASSIFICAZIONE RISCHIO","AZIONE","TEMPISTICHE",null,null,"OK","SISTEMA DI EARLY WARNING CONFORME","IL SISTEMA DI EARLY WARNING  ATTUATO GARANTISCE IL CONTROLLO DEL RISCHIO","effettuare la verifica di efficacia entro 1 anno"]
[null,"P1","P2","P3"]
[null,{"$f":"'6-VdR_PdM'!Q14","v":"NON CLASSIFICATO"},{"$f":"'6-VdR_PdM'!Q15","v":"NON CLASSIFICATO"},{"$f":"'6-VdR_PdM'!Q16","v":"NON CLASSIFICATO"},{"$f":"'6-VdR_PdM'!D17","v":""},{"$f":"'8-OPPORTUNITA'!D38","v":""},{"$f":"IFERROR(ROUND(E15*F15,0),\"\")","v":""},{"$f":"IF(G15=\"\",\"\",IF(G15<200,\"BASSO\",IF(G15<450,\"MEDIO\",\"ELEVATO\")))","v":""},{"$f":"IF('8-OPPORTUNITA'!D60<>\"\",IF('8-OPPORTUNITA'!F60>1,\"ALERT\",\"OK\"),\"\")","v":""},{"$f":"IFERROR(VLOOKUP(I15,P12:R13,2,0),\"\")","v":""},{"$f":"IF(I15=\"ALERT\",E16,H15)","v":""},{"$f":"IFERROR(VLOOKUP(I15,$P$12:$S$13,3,0),\"\")","v":""},{"$f":"IFERROR(VLOOKUP(I15,$P$12:$S$13,4,0),\"\")","v":""}]
[null,"% P1",{"$f":"IFERROR(B15/E15*100,\"\")","v":""},null,{"$f":"'6-VdR_PdM'!D18","v":""}]
[null,"se il rischio risulta ELEVATO occorre procedere con la compilazione della parte Opportunità O"]
[]
[null,"Processo: Campionamento ed analisi "]
[null,"vengono riassunti i RISULTATI della elaborazione di cui al foglio 7-Vdr_processo"]
[null,"RISCHIO PROCESSO "]
[null,"V1_VALUTAZIONE RISCHIO DA LOCALIZZAZIONE PUNTI DI CAMPIONAMENTO","V2-VALUTAZIONE RISCHIO DEL NUMERO RAPPRESENTATIVO DEI PUNTI DI CAMPIONAMENTO","V3-CAMPIONAMENTO FITOPLANCTON E MB","V4-ANALISI LAB","RISCHIO del PROCESSO COMPLESSIVO"]
["VALORI SOGLIA",50,100,5,25]
[null,{"$f":"'7-VdR_processo'!F37","v":"NON APPLICABILE"},{"$f":"'7-VdR_processo'!F66","v":"NON APPLICABILE"},{"$f":"IF('7-VdR_processo'!E123<>\"\",'7-VdR_processo'!E123,\"NON APPLICABILE\")","v":"NON APPLICABILE"},{"$f":"IF('7-VdR_processo'!E131<>\"\",'7-VdR_processo'!E131,\"NON APPLICABILE\")","v":"NON APPLICABILE"},null,null,{"$f":"SUM(B24:E24)","v":0}]
[null,{"$f":"IF(B24=\"NON APPLICABILE\",\"NON APPLICABILE\",IF(B24>B23,\"RISCHIO ELEVATO\",\"OK\"))","v":"NON APPLICABILE"},{"$f":"IF(C24=\"NON APPLICABILE\",\"NON APPLICABILE\",IF(C24>=C23,\"RISCHIO ELEVATO\",\"OK\"))","v":"NON APPLICABILE"},{"$f":"IF(D24=\"NON APPLICABILE\",\"NON APPLICABILE\",IF(D24>=D23,\"RISCHIO ELEVATO\",\"OK\"))","v":"NON APPLICABILE"},{"$f":"IF(E24=\"NON APPLICABILE\",\"NON APPLICABILE\",IF(E24>=E23,\"RISCHIO ELEVATO\",\"OK\"))","v":"NON APPLICABILE"},{"$f":"IF(E25=\"NON APPLICABILE\",\"NON APPLICABILE\",IF(OR(B25=\"RISCHIO ELEVATO\",C25=\"RISCHIO ELEVATO\",D25=\"RISCHIO ELEVATO\",E25=\"RISCHIO ELEVATO\"),\"RISCHIO ELEVATO\",\"RISCHIO BASSO\"))","v":"NON APPLICABILE"}]
["PERCENTUALE",{"$f":"IFERROR(B24/$H$24*100,\"\")","v":""},{"$f":"IFERROR(C24/$H$24*100,\"\")","v":""},null,{"$f":"IFERROR(D24/$H$24*100,\"\")","v":""},{"$f":"IFERROR(E24/$H$24*100,\"\")","v":""}]
[]
[null,null,"firma del Responsabile del procedimento",null,null,null,null,"data"]
[]
[null,"AZIONI "]
[null,"Indicazioni delle azioni da attivare in seguito al risultato della valutazione di rischio (VdR)"]
[null,"TIPOLOGIA DI RISCHIO DA PdM","ATTIVITA'",null,"SOGGETTA A REVISIONE PERIODICA","TEMPISTICHE","NOTA (TEMPO MAX)"]
[null,"RISCHIO BASSO","PROCEDERE con il riesame della VdR compilando il Modulo VdR_VdM",null,"SI","alla riformulazione del PdM o se intervengono variazioni significative che possono comportare una variazione della VdR","secondo programmazione AC"]
[null,null,"PROCEDERE con il riesame della VdR riesaminando il Modulo OPPORTUNITA'","SI (se applicato per la riduzione del RISCHIO)",null,"riverificare la sezione OPPORTUNITA'  O1-O2  se intervengono fattori atti a modificare la valutazione","1 ANNO"]
[null,null,"esaminare la ROBUSTEZZA dell'approccio mediante la compilazione della SEZIONE  F-1","SI (se applicato mitigazione con OPPORTUNITA' per la riduzione del RISCHIO)",null,"compilare la sezione F-1 ","1 ANNO"]
[null,"MEDIO","PROCEDERE con il riesame della VdR compilando il Modulo VdR_VdM",null,"SI","alla riformulazione del PdM o se intervengono variazioni significative che possono comportare una variazione della VdR","1 ANNO"]
[null,null,"PROCEDERE con il riesame della VdR compilando il Modulo OPPORTUNITA'",null,"SI","riverificare la sezione OPPORTUNITA'  O1-O2  se intervengono fattori atti a modificare la valutazione","1 anno"]
[null,null,"esaminare la ROBUSTEZZA dell'approccio mediante la compilazione della SEZIONE  F-1",null,null,"compilare la sezione F-1 ","1 anno"]
[null,"ELEVATO","Riesaminare i punti critici \ned intervenire \nnella loro risoluzione. Implementare la VdR inserendo i dati storici e sistemi \ndi early warning\n",null,"SI","urgente","1 settimana"]

{"sheet":"6-VdR_PdM","index":5,"n_rows":53,"n_cols":22,"rows_kept":53,"cut":false,"hidden":false,"merged":[[0,2,0,10],[1,2,1,10],[0,15,4,16],[11,12,11,13],[8,1,8,13],[6,1,6,13],[7,1,7,13],[24,1,24,2],[52,1,52,6],[52,9,52,13],[0,1,4,1],[19,1,20,1],[19,3,20,3],[23,3,29,3],[21,1,22,3],[19,4,31,13],[0,11,4,14],[2,2,4,10],[9,1,9,13],[10,7,10,13],[11,3,11,5],[11,6,11,8],[11,9,11,11]]}
[null,null,{"$f":"'1_Cartiglio '!C1:Q2","v":"Valutazione del Rischio (VdR)"},null,null,null,null,null,null,null,null,{"$f":"'1_Cartiglio '!$A$8&\"                                                                                      Pagina \"&R2&\"  di \"&'1_Cartiglio '!$B$10&\"                                                                                             \"&'1_Cartiglio '!$A$11&'1_Cartiglio '!$B$11&\"                                                                                              \"&'1_Cartiglio '!$A$12&'1_Cartiglio '!$B$12&\"\"","v":"Appr. LNR-BM_ITA                                                                                      Pagina 6  di 9                                                                                             Revisione n.3                                                                                              Data:22/10/2025"}]
[null,null,{"$f":"'1_Cartiglio '!C3:Q3","v":"LINEE GUIDA NAZIONALI"},null,null,null,null,null,null,null,null,null,null,null,null,null,null,6]
[null,null,"Molluschi Bivalvi Vivi"]
[]
[]
[]
[null,"Definizione del PdM: PROCESSO DECISIONALE"]
[null,"Il presente documento prende in considerazione le decisioni inerenti la pianificazione del monitoraggio nelle Aree di produzione dei MBV nell'ambito dell'applicazione del Reg. UE 2017/625 e s.m.i."]
[null,"La presente VdR si applica solo per PRODUZIONE REGOLARE E CONTINUATIVA di MBV"]
[null,"Scegliere dal menu a tendina la risposta (celle in giallo)"]
[null,"Vdr-PdM relativo a:",null,{"$f":"IF(\"Area\" &'4-INFORMAZIONI '!H7<>\"\",\"Area  \"&'4-INFORMAZIONI '!H7,\"\")","v":"Area  0"},{"$f":"IF('4-INFORMAZIONI '!H13<>\"\",'4-INFORMAZIONI '!H13,\"\")","v":"00:00:00"},null,{"$f":"\"rev \"&'4-INFORMAZIONI '!H16","v":"rev 0"},{"$f":"\"compilato da \"&'4-INFORMAZIONI '!H14","v":"compilato da 0"}]
[null,"PUNTI CRITICI DEL PROCESSO",null,"ATTIVITÀ CONSIDERATE",null,null,"ESECUZIONE ATTIVITÀ",null,null,"ATTIVITÀ IMPLEMENTATE A SUPPORTO ",null,null,"OSA ",null,null,"contributo","RISCHIO VALUTATO DA PdM"]
["A",null,null,null,null,null,null,null,null,null,null,null,null,null,null,"%"]
["P1","Campionamento","P1","Il Campionamento segue una programmazione annuale?",null,{"$f":"IF(E14=\"SI\",1,IF(E14=\"NO\",10,\"\"))","v":""},"Il Campionamento viene eseguito con cadenza:",null,{"$f":"IF(H14=\"\",\"\",VLOOKUP(H14,Foglio1!$D$3:$G$7,2,0))","v":""},"Il Campionamento del Fitoplancton è:",null,{"$f":"IF(K14=\"\",\"\",VLOOKUP('6-VdR_PdM'!K14,'6-VdR_PdM'!S14:T15,2,0))","v":""},"Quale è l'importanza commerciale dell'area?",null,{"$f":"IF(N14=\"\",\"\",(IF(N14=\"area a media o alta produttività\",2,1.8)))","v":""},10,{"$f":"IFERROR(F14*I14*L14*O14*P14,\"NON CLASSIFICATO\")","v":"NON CLASSIFICATO"},{"$f":"IF(E14=\"\"&H14=\"\"&K14=\"\"&N14=\"\",\"non classificato\",IF(E14<>\"\"&H14<>\"\"&K14<>\"\"&N14<>\"\",\"OK\",\"NON COMPLETO\"))","v":"OK"},"PREVISTO",1,null,"P1"]
["P2",null,"P2","Nella fase di programmazione del monitoraggio sono state prese in considerazione le informazioni relative alla area? Quali: ciclo produttivo e durata, produzione, eventuale fermo pesca, periodo di raccolta, etc.",null,{"$f":"IF(E15=\"SI\",1,IF(E15=\"NO\",7,\"\"))","v":""},"Nel caso di condizioni meteo avverse o in caso di impossibilità ad eseguire il campionamento ",null,{"$f":"IF(H15=\"\",\"\",IF(H15=\"campionamento annullato\",20,1))","v":""},null,null,null,"I campioni in autocontrollo (OSA) sono numericamente significativi ai fini del controllo dell'Area di produzione?",null,{"$f":"IF(N15=\"\",\"\",IF(N15=\"SI\",1,2))","v":""},3,{"$f":"IFERROR(F15*I15*O15*P15,\"NON CLASSIFICATO\")","v":"NON CLASSIFICATO"},null,"NON PREVISTO",100]
["P3","Specie campionata","P3","Quale capacità di filtrazione ha la specie campionata?",null,{"$f":"IF(E16=\"\",\"\",VLOOKUP(E16,Foglio1!D27:E29,2,0))","v":""},"La specie campionata coincide con la specie indicatore?",null,{"$f":"IF(H16=\"\",\"\",IF(H16=\"NO\",2,1))","v":""},"Nel caso di presenza di BM nella specie indicatore, come vengono gestite le altre specie eventualmente presenti?",null,{"$f":"IF(K16=\"\",\"\",VLOOKUP(K16,Foglio1!$N$8:$O$11,2,0))","v":""},null,null,null,null,{"$f":"IFERROR(F16+I16*L16,\"NON CLASSIFICATO\")","v":"NON CLASSIFICATO"}]
[null,"VALUTAZIONE RISCHIO DA PIANO DI MONITORAGGIO",null,{"$f":"IFERROR(Q18,\"\")","v":""},null,null,null,null,null,null,null,null,null,null,null,null,{"$f":"IFERROR(Q14+Q15+Q16,\"\")","v":""}]
[null,"CLASSIFICAZIONE DI RISCHIO",null,{"$f":"IF(D17=\"\",\"\",(IF(D17<200,\"BASSO\",IF(Q18<450,\"MEDIO\",\"ELEVATO\"))))","v":""},null,null,null,null,null,null,null,null,null,null,null,null,{"$f":"IF(AND(H14=\"settimanale\",H15=\"campionamento annullato\"),MAX(210,Q17),Q17)","v":""}]
[null,null,null,null,null,null,null,null,null,null,null,null,null,null,null,null,{"$f":"COUNTIF(Q14:Q16,\"NON CLASSIFICATO\")","v":3}]
[null,null,null,{"$f":"IF(K48=4,\"RESET OK\",\"\")","v":"RESET OK"},{"$f":"IF(D24=\"ELEVATO\",\"COMPILARE SEZ- 8 OPPORTUNITÀ\",\"\")","v":""}]
[]
[]
[]
[null,null,null,{"$f":"'5- RISULTATI AZIONI'!E16","v":""}]
[]
[]
[]
[]
[]
[]
[]
[null,null,null,{"$f":"IF(K44=4,\"compilazione completa\",\"da completare\")","v":"da completare"}]
[]
[]
[null,null,null,null,{"$f":"IF(E14=\"\",\"NO\",\"OK\")","v":"NO"},null,null,{"$f":"IF(H14=\"\",\"NO\",\"OK\")","v":"NO"},null,null,{"$f":"IF(K14=\"\",\"NO\",\"OK\")","v":"NO"},{"$f":"IF(L14=\"\",\"NO\",\"OK\")","v":"NO"},null,{"$f":"IF(N14=\"\",\"NO\",\"OK\")","v":"NO"}]
[null,null,null,null,{"$f":"IF(E15=\"\",\"NO\",\"OK\")","v":"NO"},null,null,{"$f":"IF(H15=\"\",\"NO\",\"OK\")","v":"NO"},null,null,null,{"$f":"IF(L15=\"\",\"NO\",\"OK\")","v":"NO"},null,{"$f":"IF(N15=\"\",\"NO\",\"OK\")","v":"NO"}]
[null,null,null,null,{"$f":"IF(E16=\"\",\"NO\",\"OK\")","v":"NO"},null,null,{"$f":"IF(H16=\"\",\"NO\",\"OK\")","v":"NO"},null,null,{"$f":"IF(K16=\"\",\"NO\",\"OK\")","v":"NO"},{"$f":"IF(L16=\"\",\"NO\",\"OK\")","v":"NO"}]
[]
[]
[]
[]
[null,null,null,null,{"$f":"COUNTIF(E35:E37,\"OK\")","v":0},null,{"$f":"COUNTIF(H35:H37,\"OK\")","v":0},{"$f":"COUNTIF(K35:K37,\"OK\")","v":0},null,{"$f":"COUNTIF(N35:N37,\"OK\")","v":0},null,{"$f":"COUNTIF(L35:L37,\"OK\")","v":0}]
[]
[null,null,null,null,{"$f":"IF(E42=3,\"SI\",\"NO\")","v":"NO"},null,{"$f":"IF(G42=3,\"SI\",\"NO\")","v":"NO"},{"$f":"IF(H42=2,\"SI\",\"NO\")","v":"NO"},null,{"$f":"IF(J42=2,\"SI\",\"NO\")","v":"NO"},{"$f":"COUNTIF(E44:J44,\"SI\")","v":0},{"$f":"IF(L42=3,\"SI\",\"NO\")","v":"NO"}]
[]
[null,null,null,null,{"$f":"COUNTIF(E35:E37,\"NO\")","v":3},{"$f":"COUNTIF(F35:F37,\"NO\")","v":0},{"$f":"COUNTIF(H35:H37,\"NO\")","v":3},{"$f":"COUNTIF(K35:K37,\"NO\")","v":2},0,{"$f":"COUNTIF(N35:N37,\"NO\")","v":2},null,3]
[]
[null,null,null,null,{"$f":"IF(E46=3,\"SI\",\"NO\")","v":"SI"},null,{"$f":"IF(G46=3,\"SI\",\"NO\")","v":"SI"},{"$f":"IF(H46=2,\"SI\",\"NO\")","v":"SI"},null,{"$f":"IF(J46=2,\"SI\",\"NO\")","v":"SI"},{"$f":"COUNTIF(E48:J48,\"SI\")","v":4}]
[]
[]
[]
[]
[null,"Firma del Responsabile",null,null,null,null,null,"data"]

{"sheet":"7-VdR_processo","index":6,"n_rows":146,"n_cols":13,"rows_kept":146,"cut":false,"hidden":false,"merged":[[145,2,145,3],[145,7,145,8],[31,1,31,2],[32,1,32,2],[33,1,33,2],[34,1,34,2],[36,1,36,2],[58,0,58,10],[59,0,59,8],[60,1,60,8],[39,3,40,3],[86,1,86,2],[61,1,61,2],[62,1,62,2],[63,1,63,2],[65,1,65,3],[26,1,26,2],[27,1,27,2],[28,1,28,2],[29,1,29,2],[30,1,30,2],[17,1,17,2],[18,1,18,2],[23,1,23,8],[24,1,24,8],[25,1,25,2],[19,3,20,3],[0,2,0,4],[10,3,10,5],[10,1,11,2],[7,1,7,8],[8,1,8,8],[6,1,6,8],[0,7,4,8],[1,2,2,4],[3,2,4,4],[0,1,4,1],[10,7,10,8],[12,13,12,14],[13,1,13,8],[15,1,15,2],[16,1,16,2],[12,1,12,10],[14,1,14,8],[87,1,87,3],[88,1,88,2],[89,1,89,3],[77,1,77,8],[67,3,68,3],[80,1,80,2],[81,1,81,2],[82,1,82,2],[122,1,122,3],[123,1,123,8],[126,7,126,8],[128,7,128,8],[124,1,124,8],[64,1,64,2],[131,3,132,3],[131,1,132,2],[130,1,130,3],[78,1,78,8],[79,7,79,8],[79,1,79,6],[104,7,104,8],[104,1,104,6],[84,1,84,4],[91,3,92,3],[112,3,113,3],[110,1,110,3],[83,1,83,3],[85,1,85,2],[130,8,130,10]]}
[null,null,{"$f":"'1_Cartiglio '!C1:Q2","v":"Valutazione del Rischio (VdR)"},null,null,null,null,{"$f":"'1_Cartiglio '!$A$8&\"                                                                                Pagina \"&M2&\"  di \"&'1_Cartiglio '!$B$10&\"                                                                                                   \"&'1_Cartiglio '!$A$11&'1_Cartiglio '!$B$11&\"                                                                                   \"&'1_Cartiglio '!$A$12&'1_Cartiglio '!$B$12&\"\"","v":"Appr. LNR-BM_ITA                                                                                Pagina 7  di 9                                                                                                   Revisione n.3                                                                                   Data:22/10/2025"}]
[null,null,{"$f":"'1_Cartiglio '!C3:Q3","v":"LINEE GUIDA NAZIONALI"},null,null,null,null,null,null,null,null,null,7]
[]
[null,null,{"$f":"'1_Cartiglio '!C4:Q5","v":"Molluschi Bivalvi Vivi"}]
[]
[]
[null,"Definizione del processo: CAMPIONAMENTO E ANALISI"]
[null,"Il presente documento prende in considerazione le criticità legate al campionamento, al personale impiegato nelle attività di campionamento e al Laboratotio Ufficiale che effettua le analisi"]
[null,"Scegliere dal menu a tendina la risposta (celle in giallo)"]
[null,{"$f":"'6-VdR_PdM'!B11","v":"Vdr-PdM relativo a:"},{"$f":"'6-VdR_PdM'!D11","v":"Area  0"},"data",{"$f":"'6-VdR_PdM'!E11","v":"00:00:00"},null,"Rev",{"$f":"'6-VdR_PdM'!G11","v":"rev 0"},{"$f":"'6-VdR_PdM'!H11","v":"compilato da 0"}]
[null,"PUNTI CRITICI DEL PROCESSO",null,"ATTIVITÀ CONSIDERATE",null,null,null,"ESECUZIONE ATTIVITÀ"]
[null,null,null,"Descrizione attivita","Applicazione","Valutazione ","Valutazione  II livello","Dettaglio della attività","Applicazione","valutazione","output atteso"]
[null,"VALUTAZIONE DEL CAMPIONAMENTO"]
["V1","V1- LOCALIZZAZIONE DEI PUNTI DI CAMPIONAMENTO"]
["V1-A","V1-A informazioni necessarie"]
[null,null,null,"I punti di campionamento sono ben identificati e georeferenziati?",null,{"$f":"IF(E16=\"\",\"\",IF(E16=\"NO\",50,5))","v":""},{"$f":"F16","v":""}]
[null,null,null,"È possibile il campionamento di acqua e molluschi nella stessa area?",null,{"$f":"IF(E17=\"\",\"\",VLOOKUP(E17,Foglio1!$D$10:$E$12,2,0))","v":""},{"$f":"F17","v":""}]
[null,null,null,"Esistono \"Stazioni Sentinella” monitorate con frequenza ridotta?",null,{"$f":"IF(E18=\"\",\"\",VLOOKUP(E18,Foglio1!$D$10:$E$12,2,0))","v":""},{"$f":"F18","v":""},null,null,null,null,null,{"$f":"IF(E16<>\"\",\"SI\",\"\")","v":""}]
[null,"V1-A VALUTAZIONE RISCHIO",null,{"$f":"IFERROR(ROUND((IF(E16=\"NO\",MAXA(51,F19),F19)*G35),0),\"\")","v":""},null,{"$f":"IFERROR(G16*AVERAGE(G17:G18),\"NON APPLICABILE\")","v":"NON APPLICABILE"},null,null,null,null,null,null,{"$f":"IF(E17<>\"\",\"SI\",\"\")","v":""}]
[null,null,null,{"$f":"IF(M21=3,\"Compilazione completa\",\"da completare\")","v":"da completare"},null,{"$f":"IF(E16=\"\",\"NO\",\"\")","v":"NO"},null,null,null,null,null,null,{"$f":"IF(E18<>\"\",\"SI\",\"\")","v":""}]
[null,null,null,null,null,{"$f":"IF(E17=\"\",\"NO\",\"\")","v":"NO"},null,null,null,null,null,null,{"$f":"COUNTIF(M18:M20,\"SI\")","v":0}]
[null,null,null,null,null,{"$f":"IF(E18=\"\",\"NO\",\"\")","v":"NO"}]
[]
["V1-B","V1-B informazioni accessorie"]
[]
[null,"Si vuole compilare la sezione V1-B?"]
[null,"Vedi art. 56 REG UE 2019/627 Prescrizioni in materia di indagine sanitaria",null,"Sono disponibili dati relativi alla idrografia, fenomeni di upwellings, fronti, correnti, effetti di marea?",null,{"$f":"IF(E27=\"\",\"\",VLOOKUP(E27,Foglio1!$D$10:$G$13,2,0))","v":""},{"$f":"IFERROR(F27/J27,\"\")","v":""},"Esistono modelli idrodinamici che interpolano i dati raccolti?",null,{"$f":"IF(I27=\"\",\"\",IF(E27=\"SI\",VLOOKUP(I27,Foglio1!D10:F14,3,0),1))","v":""}]
[null,"NOTA: tali informazioni dovrebbero essere già a disposizione della AC in quanto per la classificazione delle aree servono dati per fare la DESK STUDY preliminare",null,"Sono noti dati chimo-fisici dell'area, come T°, pH, salinità ossigeno disciolto, etc?",null,{"$f":"IF(E28=\"\",\"\",VLOOKUP(E28,Foglio1!$D$10:$G$13,2,0))","v":""},{"$f":"IFERROR(F28/J28,\"\")","v":""},"Questi dati vengono utilizzati nel modello?",null,{"$f":"IF(I28=\"\",\"\",IF(AND(E28=\"SI\",I28=\"SI\"),2,1))","v":""}]
[null,"Vedi anche art 56 del Reg UE 2019/627",null,"Esistono fenomeni di Vertical mixing nella colonna d’acqua?",null,{"$f":"IF(E29=\"\",\"\",VLOOKUP(E29,Foglio1!$D$10:$G$13,2,0))","v":""},{"$f":"IFERROR(F29/J29,\"\")","v":""},"È nota la batimetria?",null,{"$f":"IF(I29=\"\",\"\",IF(AND(E29=\"si\",I29=\"SI\"),2,1))","v":""}]
[null,null,null,"I punti di campionamento sono facilmente accessibili anche in situazioni metereologiche avverse?",null,{"$f":"IF(E30=\"\",\"\",VLOOKUP(E30,Foglio1!$D$10:$G$13,2,0))","v":""},{"$f":"F30","v":""}]
[null,null,null,"Esistono dei modelli previsionali che consentono di valutare oggettivamente la circolazione degli inquinanti e delle masse algali, elaborati sulla base di dati pregressi?",null,{"$f":"IF(E31=\"\",\"\",VLOOKUP(E31,Foglio1!$D$10:$G$13,2,0))","v":""},{"$f":"IF(E31=\"SI\",IFERROR(F31/J31,\"\"),F31)","v":""},"Se \"SI\" i dati raccolti si riferiscono a un arco di tempo:",null,{"$f":"IF(I31=\"\",\"\",IF(E31=\"SI\",VLOOKUP(I31,Foglio1!D15:E18,2,0),1))","v":""}]
[null,null,null,"Sono noti fenomeni di Ingressioni di specie algali tossiche?",null,{"$f":"IF(E32=\"\",\"\",VLOOKUP(E32,Foglio1!$D$10:$G$13,2,0))","v":""},{"$f":"IF(E32=\"SI\",IFERROR(F32/J32,\"\"),F32)","v":""},"Se \"SI\" sono prevedibili?",null,{"$f":"IF(I32=\"\",\"\",VLOOKUP(I32,Foglio1!D10:F14,3,0))","v":""}]
[null,null,null,"Sono presenti dati che evidenziano variazioni dovute ai cambiamenti climatici?",null,{"$f":"IF(E33=\"\",\"\",VLOOKUP(E33,Foglio1!$D$10:$G$13,2,0))","v":""},{"$f":"IF(E33=\"SI\",IFERROR(F33/J33,\"\"),F33)","v":""},"Se \"SI\" possono essere previsti mediante un modello previsionale?",null,{"$f":"IF(I33=\"\",\"\",IF(E33=\"SI\",VLOOKUP(I33,Foglio1!D10:F14,3,0),1))","v":""}]
[null,"Vedi art. 56 REG UE 2019/627 Prescrizioni in materia di indagine sanitaria",null,"Sono presenti informazioni relative al collocamento dell'Area indagata, ad esempio se posizionata in prossimità di un estuario o \"zone a rischio\" (valutare anche l'esposizione a fonti potenziali di rischio quali maree, stagionalità, presenza di impianti di depurazione, località turistiche che possono presentare un aumento di popolazione in particolari periodi dell'anno)?",null,{"$f":"IF(E34=\"\",\"\",VLOOKUP(E34,Foglio1!$D$10:$G$13,2,0))","v":""},{"$f":"IF(E34=\"SI\",IFERROR(F34/J34,\"\"),F34)","v":""},"Se \"SI\" è stata considerata nella programmazione del monitoraggio?",null,{"$f":"IF(I34=\"\",\"\",IF(E34=\"SI\",VLOOKUP(I34,Foglio1!D10:F14,3,0),1))","v":""}]
["V1-B","V1-B: Valutazione rischio informazioni di dettaglio-RISULTATO",null,null,{"$f":"IF(D26<>\"\",G35,\"\")","v":""},null,{"$f":"IF(D26=\"NO\",5,IFERROR(AVERAGE(G27:G34),5))","v":5}]
[]
["V1","V1-VALUTAZIONE RISCHIO DA LOCALIZZAZIONE PUNTI DI CAMPIONAMENTO -RISULTATO COMPLESSIVO",null,null,null,{"$f":"IFERROR(F19*G35,\"NON APPLICABILE\")","v":"NON APPLICABILE"}]
[]
[null,null,null,null,null,{"$f":"IF(E27=\"\",\"NO\",\"\")","v":"NO"}]
[null,null,null,{"$f":"IF(E54=15,\"Compilazione completa\",\"da completare\")","v":"da completare"},null,{"$f":"IF(E27=\"\",\"NO\",\"\")","v":"NO"},{"$f":"IF(I27=\"\",\"NO\",\"\")","v":"NO"}]
[null,null,null,null,null,"NO",{"$f":"IF(I27=\"\",\"NO\",\"\")","v":"NO"}]
[null,null,null,null,null,"NO"]
[null,null,null,null,{"$f":"IF(E27<>\"\",\"NO\",\"\")","v":""},{"$f":"IF(I27<>\"\",\"NO\",\"\")","v":""}]
[null,null,null,null,{"$f":"IF(E28<>\"\",\"NO\",\"\")","v":""},{"$f":"IF(I28<>\"\",\"NO\",\"\")","v":""}]
[null,null,null,null,"",""]
[null,null,null,null,""]
[null,null,null,null,"",""]
[null,null,null,null,"",""]
[null,null,null,null,"",""]
[null,null,null,null,"",""]
[null,null,null,null,null,{"$f":"IF(I35<>\"\",\"NO\",\"\")","v":""},null,null,{"$f":"IF(I35<>\"\",\"NO\",\"\")","v":""}]
[]
[null,null,null,null,{"$f":"COUNTIF(E43:E51,\"NO\")","v":0},{"$f":"COUNTIF(F43:F50,\"NO\")","v":0}]
[null,null,null,null,{"$f":"E53+F53","v":0}]
[]
[]
[]
[]
[]
[]
["V2","V2-DEFINIZIONE DEL NUMERO RAPPRESENTATIVO DEI PUNTI DI CAMPIONAMENTO"]
[null,null,null,"Il piano di campionamento garantisce la  rappresentatività spaziale?",null,{"$f":"IF(E62=\"\",\"\",IF(E62=\"SI\",1,100))","v":""}]
[null,null,null,"Campionamento è statisticamente rappresentativo in funzione dei dati storici?",null,{"$f":"IF(E63=\"\",\"\",VLOOKUP(E63,Foglio1!$D$10:$E$12,2,0))","v":""}]
[null,"Solo in in caso di riduzione dei punti di campionamento/raggruppamento per area OMOGENEA-occorre la effetuazione di una Indagine sanitaria effettuata ai senso del Reg UE 2019/627 che giustifichi il raggruppamento",null,"I punti di campionamento più rappresentativi sono stati scelti in funzione dei dati storici (scelta dell’area più esposta a contaminazione)?",null,{"$f":"IF(E64=\"\",\"\",VLOOKUP(E64,Foglio1!$D$10:$E$12,2,0))","v":""},{"$f":"IFERROR(IF(E64=\"SI\",F64/J64,F64),\"\")","v":""},"Se \"SI\" Scelta dei punti rappresentativi dell’area adottando un approccio preventivo e cautelativo del “peggiore delle ipotesi”",null,{"$f":"IF(I64=\"\",\"\",IF(E64=\"si\",VLOOKUP(I64,Foglio1!D10:F14,3,0),1))","v":""}]
[null,null,null,null,null,{"$f":"G65","v":"NON APPLICABILE"},{"$f":"IFERROR(F62*F63*G64,\"NON APPLICABILE\")","v":"NON APPLICABILE"}]
["V2","VALUTAZIONE RISCHIO DEL NUMERO RAPPRESENTATIVO DEI PUNTI DI CAMPIONAMENTO-RISULTATO",null,null,null,{"$f":"IF(F65=\"\",\"NON APPLICABILE\",IF(E62=\"SI\",G65,F65))","v":"NON APPLICABILE"}]
[]
[null,null,null,{"$f":"IF(F76=4,\"Compilazione completa\",\"da completare\")","v":"da completare"}]
[]
[]
[null,null,null,null,null,{"$f":"IF(E62<>\"\",\"NO\",\"\")","v":""}]
[null,null,null,null,null,{"$f":"IF(E63<>\"\",\"NO\",\"\")","v":""}]
[null,null,null,null,null,"",{"$f":"IF(H64<>\"\",\"NO\",\"\")","v":"NO"}]
[null,null,null,null,null,{"$f":"IF(E65<>\"\",\"NO\",\"\")","v":""}]
[null,null,null,null,null,{"$f":"COUNTIF(F71:F73,\"NO\")","v":0},{"$f":"COUNTIF(G71:G73,\"NO\")","v":1}]
[null,null,null,{"$f":"COUNTIF(E77:F77,\"OK\")","v":0},null,{"$f":"F75+G75","v":1}]
[]
[]
["V3","V3-CAMPIONAMENTO FITOPLANCTON E MOLLUSCHI BIVALVI"]
["V3-A","V3-A1 Campionamento del FITOPLANCTON"]
[null,null,null,"Quale è la modalità di campionamento del Fitoplancton?",null,{"$f":"IF(E81=\"\",\"\",VLOOKUP(E81,Foglio1!D20:E21,2,0))","v":""}]
[null,null,null,"Il personale addetto al campionamento è stato adeguatamente formato?",null,{"$f":"IF(E82=\"\",\"\",VLOOKUP(E82,Foglio1!D23:E25,2,0))","v":""}]
[null,"• VALUTAZIONE DELLE TOSSICITA’ DELLE ALGHE",null,"Esiste una LISTA di alghe in ordine di tossicità e raccolte per tossina-prodotta?",null,{"$f":"IF(E83=\"\",\"\",VLOOKUP(E83,Foglio1!$D$10:$G$12,2,0))","v":""}]
["V3-A1","V3A-1VALUTAZIONE RISCHIO: CAMPIONAMENTO DEL FITOPLANCTON",null,null,{"$f":"IFERROR(F81*F82*F83,\"NON APPLICABILE\")","v":"NON APPLICABILE"}]
["V3-A2","V3-A2 Informazioni di dettaglio FITOPLANCTON E MB"]
[null,null,null,"Esiste una procedura di campionamento accurata che consente un campionamento rappresentativo?",null,{"$f":"IF(E86=\"\",\"\",VLOOKUP(E86,Foglio1!$D$10:$G$12,4,0))","v":""}]
[null,null,null,"Esistono piani di campionamento dettagliati che riportanoalmeno le seguenti informazioni? (ad es. coordinate georeferenziate per il campionamento;\nIndicazioni sulle modalità di prelievo del campione..)",null,{"$f":"IF(E87=\"\",\"\",VLOOKUP(E87,Foglio1!$D$10:$G$12,4,0))","v":""}]
["V3A-2","V3A-2 VALUTAZIONE RISCHIO INFORMAZIONI DI DETTAGLIO",null,null,{"$f":"IF(AND(F86=\"\",F87=\"\"),\"NON APPLICABILE\",MAX(F86:F87))","v":"NON APPLICABILE"}]
[]
["V3-A","V3-A VALUTAZIONE RISCHIO: CAMPIONAMENTO FITOPLANCTON",null,null,{"$f":"IFERROR((E88*E84),\"NON APPLICABILE\")","v":"NON APPLICABILE"}]
[]
[null,null,null,{"$f":"IF(F100=5,\"Compilazione completa\",\"da completare\")","v":"da completare"}]
[]
[null,null,null,{"$f":"IF(E81=\"\",\"NO\",\"\")","v":"NO"}]
[null,null,null,null,null,{"$f":"IF(E81<>\"\",\"NO\",\"\")","v":""}]
[null,null,null,null,null,{"$f":"IF(E82<>\"\",\"NO\",\"\")","v":""}]
[null,null,null,null,null,""]
[null,null,null,null,null,{"$f":"IF(E86<>\"\",\"NO\",\"\")","v":""}]
[null,null,null,null,null,{"$f":"IF(E87<>\"\",\"NO\",\"\")","v":""}]
[null,null,null,{"$f":"IF(E82=\"\",\"NO\",\"\")","v":"NO"},null,{"$f":"COUNTIF(F95:F99,\"NO\")","v":0}]
[]
[]
[]
[]
["V3-B","V3-B Campionamento molluschi e specie indicatore "]
[null,null,null,"È stata identificata una Specie Indicatore?",null,{"$f":"IF(E106=\"\",\"\",VLOOKUP(E106,Foglio1!$D$10:$G$12,2,0))","v":""}]
[null,null,null,"Il personale addetto al campionamento è stato adeguatamente formato?",null,{"$f":"IF(E107=\"\",\"\",VLOOKUP(E107,Foglio1!D23:E25,2,0))","v":""}]
[null,null,null,"Campionamento di fitoplancton e molluschi è:",null,{"$f":"IF(E108=\"\",\"\",IF(E108=\"contestuale\",0.5,1))","v":""}]
[null,null,null," Verbale di campionamento indicanta:                                                                                              • T° acqua, salinità;\n• Condizioni meteo; \n• Condizioni idro;                                                                                                                                      • Dettagli sulla tipologia di specie da campionamento e dimensioni e quantità degli esemplari.",null,{"$f":"IF(E109=\"\",\"\",VLOOKUP(E109,Foglio1!$D$10:$G$12,4,0))","v":""}]
[null,null,null,"\n"]
["V3-B","V3-B VALUTAZIONE RISCHIO: CAMPIONAMENTO MOLLUSCHI_SPECIE INDICATORE",null,null,{"$f":"IFERROR(F106*F107*F108*F109,\"NON APPLICABILE\")","v":"NON APPLICABILE"}]
[null,null,null,null,null,{"$f":"IF(E106=\"\",\"NO\",\"\")","v":"NO"}]
[null,null,null,{"$f":"IF(F120=4,\"Compilazione completa\",\"da completare\")","v":"da completare"},null,{"$f":"IF(E107=\"\",\"NO\",\"\")","v":"NO"}]
[null,null,null,null,null,{"$f":"IF(E108=\"\",\"NO\",\"\")","v":"NO"}]
[]
[null,null,null,null,null,{"$f":"IF(E106<>\"\",\"NO\",\"\")","v":""}]
[null,null,null,null,null,{"$f":"IF(E107<>\"\",\"NO\",\"\")","v":""}]
[null,null,null,null,null,""]
[null,null,null,null,null,""]
[null,null,null,null,null,{"$f":"COUNTIF(F116:F119,\"NO\")","v":0}]
[]
[]
["V3","V3-VALUTAZIONE RISCHIO ASSOCIATO AL CAMPIONAMENTO-RISULTATO",null,null,{"$f":"IF(D113=\"da completare\",\"\",IFERROR(MAX(E111,E90),\"NON APPLICABILE\"))","v":""}]
[]
[null,"V4-VALUTAZIONE DI RISCHIO DEL LABORATORIO"]
["V4",null,null,"Le Biotossine e fitoplancton sono analizzati nello stesso laboratorio?",null,{"$f":"IF(E126=\"\",\"\",IF(E126=\"SI\",1,10))","v":""},{"$f":"IFERROR(F126/J126,\"\")","v":""},"Esiste un confronto continuo tra i dati del fitoplancton e quelli delle Biotossine?",null,{"$f":"IF(I126=\"\",\"\",IF(I126=\"SI\",10,1))","v":""}]
[null,null,null,"Il laboratorio è conforme ai requisiti del Reg UE 2019/627 ALLEGATO V per le biotossine?",null,{"$f":"IF(E127=\"\",\"\",VLOOKUP(E127,Foglio1!$D$10:$G$12,4,0))","v":""},{"$f":"F127","v":""}]
[null,null,null,"I tempi di refertazione medi sono dell'ordine di:",null,{"$f":"IF(E128=\"\",\"\",VLOOKUP(E128,[9]Foglio1!D31:E34,2,0))","v":""},{"$f":"IFERROR(F128/J128,\"\")","v":""},"Il tempo di refertazione è congruo con la frequenza di campionamento?",null,{"$f":"IF(I128=\"\",\"\",IF(I128=\"SI\",4,0.05))","v":""}]
[null,null,null,"Il Laboratorio è Accreditato per le Biotossine Marine regolamentate?",null,{"$f":"IF(E129=\"\",\"\",VLOOKUP(E129,[9]Foglio1!$D$10:$G$12,4,0))","v":""},{"$f":"F129","v":""}]
[null,null,null,"Il Laboratorio è Accreditato per l'analisi del fitoplancton?",null,{"$f":"IF(E130=\"\",\"\",VLOOKUP(E130,Foglio1!D10:J13,7,0))","v":""},{"$f":"IFERROR(IF(E130=\"SI\",F130,F130/J130),\"\")","v":""},"In caso di prova NON ACCREDITATA il metodo si mantiene in CQ mediante:",null,{"$f":"IF(I130=\"\",\"\",VLOOKUP(I130,Foglio1!D36:E40,2,0))","v":""}]
["V4","V4-VALUTAZIONE RISCHIO: LABORATORI E METODI",null,null,{"$f":"IF(F131=\"\",\"\",IFERROR(F131+G131,\"non applicabile\"))","v":""},{"$f":"IF(G126=\"\",\"\",IFERROR(MAX(G126,G128,G130),\"NON APPLICABILE\"))","v":""},{"$f":"IF(G127=\"\",\"\",IFERROR(MAXA(G127,G129),\"non applicabile\"))","v":""},null,{"$f":"IF(I130=\"altro\",\"specificare\",\"\")","v":""}]
[null,null,null,{"$f":"IF(E144=8,\"Compilazione completa\",\"da completare\")","v":"da completare"}]
[]
[]
[]
[null,null,null,null,{"$f":"IF(E126<>\"\",\"NO\")","v":false},{"$f":"IF(I126<>\"\",\"NO\")","v":false}]
[null,null,null,null,{"$f":"IF(E127<>\"\",\"NO\")","v":false}]
[null,null,null,null,false,{"$f":"IF(I128<>\"\",\"NO\")","v":false}]
[null,null,null,null,false]
[null,null,null,null,false,false]
[null,null,null,null,null,null,{"$f":"IF(I131<>\"\",\"NO\",\"\")","v":""}]
[null,null,null,null,{"$f":"COUNTIF(E136:E140,\"NO\")","v":0},{"$f":"COUNTIF(F136:F140,\"NO\")","v":0}]
[]
[null,null,null,null,{"$f":"E142+F142","v":0}]
[]
[null,"Firma del Responsabile",null,null,"data",null,null,null,null,"2025-09-05"]

{"sheet":"8-OPPORTUNITA","index":7,"n_rows":76,"n_cols":14,"rows_kept":76,"cut":false,"hidden":false,"merged":[[75,1,75,3],[75,6,75,10],[29,1,29,11],[30,2,30,11],[55,2,55,10],[61,5,65,5],[43,1,43,10],[54,1,54,2],[61,2,65,2],[35,1,35,2],[36,1,36,11],[37,6,37,11],[52,1,52,11],[53,2,53,11],[0,10,4,10],[0,2,1,9],[2,2,2,9],[3,2,4,9],[59,1,59,2],[17,1,17,2],[17,6,17,11],[7,1,7,11],[8,1,8,11],[11,1,11,11],[12,2,12,11],[9,7,9,10],[18,2,19,2],[38,2,42,2],[28,1,28,11]]}
[null,null,"Valutazione del rischio (VdR)",null,null,null,null,null,null,null,{"$f":"'1_Cartiglio '!$A$8&\"                                    Pagina \"&N2&\"  di \"&'1_Cartiglio '!$B$10&\"                                              \"&'1_Cartiglio '!$A$11&'1_Cartiglio '!$B$11&\"                                                   \"&'1_Cartiglio '!$A$12&'1_Cartiglio '!$B$12&\"\"","v":"Appr. LNR-BM_ITA                                    Pagina 8  di 9                                              Revisione n.3                                                   Data:22/10/2025"}]
[null,null,null,null,null,null,null,null,null,null,null,null,null,8]
[null,null,"LINEE GUIDA NAZIONALI"]
[null,null,"Molluschi Bivalvi Vivi"]
[]
[]
[]
[null,"OPPORTUNITA'"]
[null,"il presente documento prende in considerazione i meccanismi/sistemi/espedienti/ adottati dalle AU nella definizione dei PdM e della frequenza di campionamento, e l'efficacia di tali sistemi nella intercettazione dell'evento tossico"]
[null,{"$f":"'6-VdR_PdM'!B11","v":"Vdr-PdM relativo a:"},{"$f":"'6-VdR_PdM'!D11","v":"Area  0"},{"$f":"'6-VdR_PdM'!E11","v":"00:00:00"},null,null,{"$f":"'6-VdR_PdM'!G11","v":"rev 0"},{"$f":"'6-VdR_PdM'!H11","v":"compilato da 0"}]
[null,"ATTIVITÀ IMPLEMENTATA","AZIONE","APPLICAZIONE",null,null,"ATTIVITÀ SUPPORTO 1","APPLICAZIONE","VALUTAZIONE","ATTIVITÀ SUPPORTO 2","APPLICAZIONE","VALUTAZIONE"]
["O1","Valutazione serie dei dati storici inerenti la presenza di BM regolamentate e del Fitoplancton tossico"]
[null,"Obiettivo","Verifica della correttezza e affidabilità della valutazione dei dati storici inerenti la presenza di Biotossine e fitoplancton tossico come strumento per la gestione delle frequenze (riduzione) di campionamento"]
[null,"UTILIZZO DATI STORICI PER LA DEFINZIONE DELLE FREQUENZE","Sono utilizzabili informazioni storiche di base tra cui i dati delle tossine e delle specie algali tossiche rilevate?",null,{"$f":"IF(D14=\"\",\"\",IF(D14=\"SI\",1,0))","v":""},{"$f":"E14","v":""}]
[null,"Da compilare solo nel caso in cui O1_SI","Esistono dei dati storici relativi ad almeno tre anni consecutivi che giustifichino che la frequenza adottata intercetti tempestivamente i fenomeni di accumulo delle Biotossine marine?",null,{"$f":"IF(D15=\"\",\"\",VLOOKUP(D15,[10]Foglio1!$D$10:$G$12,4,0))","v":""},{"$f":"IFERROR(E15/AVERAGE(I15:I17),\"\")","v":""},"I dati storici sono tali da definire un trend e individuare dei periodi di “Rischio”?",null,{"$f":"IF(H15=\"\",\"\",IF(H15=\"\",\"\",VLOOKUP(H15,Foglio1!$D$10:$F$14,3,0)))","v":""}]
[null,null,null,null,null,null,"I dati storici consentono di fare delle previsioni (es: tempo impiegato dal MB a accumulare la tossina etc)?",null,{"$f":"IF(H16=\"\",\"\",IF(H16=\"\",\"\",VLOOKUP(H16,Foglio1!$D$10:$F$14,3,0)))","v":""}]
[null,null,null,null,null,null,"I dati storici raccolti sono stati utilizzati per la definizione della frequenza di campionamento?",null,{"$f":"IF(H17=\"\",\"\",IF(H17=\"\",\"\",VLOOKUP(H17,Foglio1!$D$10:$F$14,3,0)))","v":""}]
["O1","VALUTAZIONE DATI STORICI",null,{"$f":"IF(D14<>\"\",IF(D14=\"SI\",F18,1),\"\")","v":""},null,{"$f":"IF(AND(D14<>\"\",D15<>\"\"),(IFERROR(F15*2,\"\")),\"errore di Compilazione\")","v":"errore di Compilazione"}]
[null,null,{"$f":"IF(G27=5,\"Compilazione completa\",\"da completare\")","v":"da completare"}]
[]
[null,null,null,null,null,null,{"$f":"IF(D14<>\"\",\"NO\")","v":false},null,{"$f":"COUNTIF(H15:H17,\"SI\")","v":0}]
[null,null,null,null,null,null,{"$f":"IF(D15<>\"\",\"NO\")","v":false},{"$f":"IF(H15<>\"\",\"NO\")","v":false}]
[null,null,null,null,null,null,null,{"$f":"IF(H16<>\"\",\"NO\")","v":false}]
[null,null,null,null,null,null,null,false]
[]
[null,null,null,null,null,null,{"$f":"COUNTIF(G21:G24,\"NO\")","v":0},{"$f":"COUNTIF(H22:H24,\"NO\")","v":0}]
[null,null,null,null,null,null,{"$f":"G26+H26","v":0}]
[]
[]
["O2","SISTEMI DI EARLY WARNING"]
[null,"Obiettivo","Verifica dell'utilizzo di un approccio early warning  per la corretta intercettazione dell'evento tossico "]
[null,"Implementazione di un sistema di EARLY WARNING a supporto delle attività di monitoraggio","Esiste un meccanismo di EARLY WARNING? (da dettagliare)",null,{"$f":"IF(D32=\"\",\"\",VLOOKUP(D32,[10]Foglio1!$D$10:$G$12,4,0))","v":""},{"$f":"IFERROR(IF(D32=\"NO\",1,E32/I32),\"\")","v":""},"I sistemi di Early Warning si basano su dati di trend storici?",null,{"$f":"IF(H32=\"\",\"\",IF(D32=\"SI\",VLOOKUP(H32,Foglio1!$D$41:$E$44,2,0),1))","v":""}]
[null,null,null,null,null,{"$f":"IFERROR(IF(D32=\"NO\",1,E32/I33),\"\")","v":""},"Il sistema di Early Warning si applica per:",null,{"$f":"IF(H33=\"\",\"\",VLOOKUP(H33,Foglio1!$D$47:$E$50,2,0))","v":""}]
[null,null,null,null,null,{"$f":"IFERROR(IF(D32=\"NO\",1,E32/I34),\"\")","v":""},"Il sistema di Early Warning adottato consente di intercettare il fenomeno al suo manifestarsi?",null,{"$f":"IF(H34=\"\",\"\",VLOOKUP(H34,Foglio1!$J$47:$K$50,2,0))","v":""}]
[null,null,null,null,null,{"$f":"IFERROR(ROUND(IFERROR(IF(D32=\"NO\",1,E32/I35),\"\"),3),\"\")","v":""},"Il sistema di Early Warning è stato attivato da un periodo di:",null,{"$f":"IF(H35=\"\",\"\",VLOOKUP(H35,Foglio1!$D$15:$F$17,3,0))","v":""}]
[null,"VALUTAZIONE SISTEMI DI EARLY WARNING",null,{"$f":"IF(D32<>\"\",(IF(D32=\"SI\",F36/2,\"\")),\"\")","v":""},null,{"$f":"IF(D32<>\"\",IFERROR(AVERAGE(F32:F35),\"ERRORE DI COMPILAZIONE\"),\"\")","v":""},{"$f":"IFERROR(AVERAGE(#REF!)+AVERAGE(#REF!),\"\")","v":""}]
[]
["O-3","valutazione OPPORTUNITA COMPLESSIVA (O1-O2)",null,{"$f":"IFERROR(ROUND(IF(AND(D18>0,D36>0),IFERROR(IF(AVERAGE(D18,D36)<=1,AVERAGE(D18,D36),1),\"\"),\"NON ATTUABILE\"),2),\"\")","v":""}]
[null,null,{"$f":"IF(D51=5,\"Compilazione completa\",\"da completare\")","v":"da completare"}]
[]
[]
[]
[]
[]
[]
[null,null,null,{"$f":"IF(D32<>\"\",\"NO\")","v":false},null,null,{"$f":"IF(H32<>\"\",\"NO\")","v":false}]
[null,null,null,null,null,null,{"$f":"IF(H33<>\"\",\"NO\")","v":false}]
[null,null,null,null,null,null,false]
[null,null,null,null,null,null,false]
[null,null,null,{"$f":"COUNTIF(D46:D49,\"NO\")","v":0},null,null,{"$f":"COUNTIF(G46:G49,\"NO\")","v":0}]
[null,null,null,{"$f":"D50+G50","v":0}]
[]
["F-1","ATTIVITA' COMPLEMENTARI"]
[null,"Obiettivo","Verifica della efficacia delle attività di supporto implementate dalla AC nel PdM per la gestione del rischio da Biotossine Marine"]
[null,"SI VUOLE COMPILARE LA PARTE F-1?"]
["F-1","F1_ATTIVITA COMPLEMENTARI","VERIFICA EFFICACIA della RIDUZIONE DI RISCHIO"]
[null,"Efficacia del controllo utilizzando sistemi di early warning o i dati storici","In caso di un sospetto o non conformità biotossicologica  è stato previsto nel piano di monitoraggio un CONTROLLO RAFFORZATO?",null,{"$f":"IF(D57=\"\",\"\",VLOOKUP(D57,[10]Foglio1!$D$10:$G$12,4,0))","v":""},{"$f":"IF(D57=\"\",\"\",IF(D57=\"SI\",E57/I57,1))","v":""},"Il Controllo Rafforzato viene attivato in seguito ad un superamento dei limiti di early warning?",null,{"$f":"IF(H57=\"\",\"\",VLOOKUP(H57,Foglio1!D10:F14,3,0))","v":""}]
[null,null,"Sono stati registrati eventi di tossicità ed intossicazione umana?",null,{"$f":"IF(D58=\"\",\"\",VLOOKUP(D58,[10]Foglio1!$D$10:$I$16,6,0))","v":""},{"$f":"IF(D58=\"\",\"\",IF(D58=\"SI\",E58/(I58*L58),0.5))","v":""},"Gli eventi sono stati registrati:",null,{"$f":"IF(H58=\"\",\"\",VLOOKUP(H58,Foglio1!D64:E68,2,0))","v":""},"L'intossicazione è dovuta a:",null,{"$f":"IF(K58=\"\",\"\",VLOOKUP(K58,Foglio1!D52:E56,2,0))","v":""}]
[null,"Nel caso di registrazione di eventi di intossicazione umana:","Sono applicate azioni correttive nel caso di evidenza di intossicazioni?",null,{"$f":"IF(D59=\"\",\"\",VLOOKUP(D59,[10]Foglio1!$D$10:$G$12,4,0))","v":""},{"$f":"IF(D59=\"\",\"\",IF(D59=\"NO\",1,E59/I59))","v":""},"A seguito della applicazione della correzione sono stati registrati nuovi episodi?",null,{"$f":"IF(H59=\"\",\"\",IF(H59=\"SI\",0.5,1))","v":""}]
[null,"VALUTAZIONE FREQUENZA EVENTI DI INTOSSICAZIONE",null,{"$f":"IF(D55=\"SI\",IFERROR(IF($F$60>1,\"NON CONFORME\",\"CONFORME\"),\"\"),\"\")","v":""},null,{"$f":"IF(AND(F58=\"\",F59=\"\"),\"\",F57*F58*F59)","v":""}]
[]
[null,null,{"$f":"IF(J74=7,\"Compilazione completa\",\"da completare\")","v":"da completare"},null,null,{"$f":"IFERROR(IF(AND(D55=\"SI\",D60>=1),\"ATTENZIONE_EARLY WARNING NON EFFICACE\",\"OK\"),\"\")","v":"OK"}]
[]
[]
[]
[]
[]
[]
[]
[null,null,null,{"$f":"IF(D57<>\"\",\"NO\")","v":false},null,null,{"$f":"IF(H57<>\"\",\"NO\")","v":false},null,{"$f":"IF(I57<>\"\",\"NO\")","v":false}]
[null,null,null,{"$f":"IF(D58<>\"\",\"NO\")","v":false},null,null,{"$f":"IF(H58<>\"\",\"NO\")","v":false},{"$f":"IF(K58<>\"\",\"NO\")","v":false},{"$f":"IF(I58<>\"\",\"NO\")","v":false}]
[null,null,null,{"$f":"IF(D59<>\"\",\"NO\")","v":false},null,null,{"$f":"IF(H59<>\"\",\"NO\")","v":false},null,{"$f":"IF(I59<>\"\",\"NO\")","v":false}]
[]
[null,null,null,{"$f":"COUNTIF(D70:D72,\"NO\")","v":0},null,null,{"$f":"COUNTIF(G70:G72,\"NO\")","v":0},0,null,{"$f":"SUM(D74:H74)","v":0}]
[]
[null,"firma del Responsabile",null,null,null,null,"data"]

{"sheet":"9-VERIFICA PARTE TERZA_BOZZA ","index":8,"n_rows":46,"n_cols":14,"rows_kept":46,"cut":false,"hidden":false,"merged":[[15,2,15,6],[16,2,16,6],[19,2,19,6],[0,1,4,2],[0,3,1,11],[3,3,4,11],[6,1,10,2],[6,3,7,9],[6,10,10,11],[9,3,10,9],[2,3,2,11],[8,3,8,9],[12,2,12,6],[13,2,13,6],[14,2,14,6]]}
[]
[]
[]
[]
[]
[]
[null,null,null,"Valutazione del rischio (VdR)",null,null,null,null,null,null,{"$f":"'1_Cartiglio '!$A$8&\"                                    Pagina \"&N8&\"  di \"&'1_Cartiglio '!$B$10&\"                                        \"&'1_Cartiglio '!$A$11&'1_Cartiglio '!$B$11&\"                                  \"&'1_Cartiglio '!$A$12&'1_Cartiglio '!$B$12&\"\"","v":"Appr. LNR-BM_ITA                                    Pagina 9  di 9                                        Revisione n.3                                  Data:22/10/2025"}]
[null,null,null,null,null,null,null,null,null,null,null,null,null,9]
[null,null,null,"LINEE GUIDA NAZIONALI"]
[null,null,null,"Molluschi Bivalvi Vivi"]
[]
[]
[null,"AUTORITA'/ENTE"]
[null,"PERSONALE incaricato"]
[null,"RUOLO"]
[null,"DATA"]
["A","NOTE"]
[]
[]
[null,"PROCEDURA DI VALUTAZIONE ","(indicare dopo quanto tempo dalla data del PdM è stata fatta la verifica)"]
[]
[null,"valutazioni ","attività","output","modi potenziali di inadeguatezza","GRAVITA","classificazione","PROBABILITA","classificazione","RIVELABILITA'","classificazione","indice"]
[null,"efficacia del piano di monitoraggio","controllo BM nei MBV -frequenza di campionamento","il PdM garantisce la tutela del consumatore","non viene intercettato l'evento tossico",8,{"$f":"VLOOKUP(F23,RIASSUNTO!$C$6:$G$16,3,0)","v":"MOLTO ALTO"},6,{"$f":"VLOOKUP(H23,RIASSUNTO!$C$6:$G$16,4,0)","v":"OCCASIONALE"},7,{"$f":"VLOOKUP(J23,RIASSUNTO!$C$6:$G$16,5,0)","v":"REMOTA"},{"$f":"F23*H23*J23","v":336}]
[null,"efficacia del PROCESSO","controllo MB-attività a supporto del PdM","le attività garantiscono il rispetto dei requisiti cogenti","non vengono rispettati i requisiti cogenti",2,{"$f":"VLOOKUP(F24,RIASSUNTO!$C$6:$G$16,3,0)","v":"LIEVE"},3,{"$f":"VLOOKUP(H24,RIASSUNTO!$C$6:$G$16,4,0)","v":"REMOTA"},null,{"$f":"VLOOKUP(J24,RIASSUNTO!$C$6:$G$16,5,0)","v":{"$error":"#N/A"}},{"$f":"F24*H24*J24","v":0}]
[]
[]
[null,"VALUTAZIONE DI RISCHIO"]
[null,null,"ESITO VALUTAZIONE","RISCHIO"]
[]
[null,"efficacia del piano di monitoraggio",{"$f":"L23","v":336},{"$f":"IF(C30<=150,\"BASSO\",(IF(AND(C30>150,C30<=300),\"MEDIO\",\"ALTO\")))","v":"ALTO"}]
[null,"efficacia del PROCESSO",{"$f":"L24","v":0},{"$f":"IF(C31<=150,\"BASSO\",(IF(AND(C31>150,C31<=300),\"MEDIO\",\"ALTO\")))","v":"BASSO"}]
[]
[]
[]
[null,null,"LEGENDA:"]
[null,null,null,"GRAVITA","PROBABILITA","RIVELABILITA'"]
[null,null,10,"ESTREMO","FREQUENTE","QUASI IMPOSSIBILE"]
[null,null,9,"ESTREMO","FREQUENTE","QUASI IMPOSSIBILE"]
[null,null,8,"MOLTO ALTO","PROBABILE","REMOTA"]
[null,null,7,"MOLTO ALTO","PROBABILE","REMOTA"]
[null,null,6,"ALTO","OCCASIONALE","BASSA"]
[null,null,5,"ALTO","OCCASIONALE","BASSA"]
[null,null,4,"MODERATO","REMOTA","ALTA"]
[null,null,3,"MODERATO","REMOTA","ALTA"]
[null,null,2,"LIEVE","IMPROBABILE","QUASI CERTA"]
[null,null,1,"LIEVE","IMPROBABILE","QUASI CERTA"]

{"sheet":"Foglio2","index":9,"n_rows":0,"n_cols":0,"rows_kept":0,"cut":false,"hidden":true,"merged":[]}

{"sheet":"Foglio1","index":10,"n_rows":96,"n_cols":15,"rows_kept":96,"cut":false,"hidden":true,"merged":[]}
[]
[]
[null,null,null,"< settimanale",0.5,200,25,null,null,null,null,null,null,"campionamento rimandato secondo tempistiche consone",1]
[null,null,null,"settimanale",3,100,50,null,null,null,null,null,null,"campionamento annullato",20]
[null,null,null,"15 gg",25,50,100]
[null,null,null,"mensile",50,10,125]
[null,null,null,">30 gg",100,5,150]
[null,null,null,null,null,null,null,null,null,null,null,null,null,"si provvede a campionare le altre specie",1]
[null,null,null,1,2,3,4,5,6,7,null,null,null,"si vieta la raccolta",2]
[null,null,null,"SI",1,2,0.5,0.5,100,0.5,null,null,null,"non so",3]
[null,null,null,"NO",5,1,100,1,0.5,50,null,null,null,"non applicabile",0]
[null,null,null,"non so",20,1,100,1,100,100]
[null,null,null,"non rilevante",2,0.5,100,1,100,50]
[null,null,null,"non applicabile",null,1]
[null,null,null,"< 3 anni",1,0.3,0.05]
[null,null,null,"> 3 anni",3,1,1]
[null,null,null,"NON SO",0.1,0.1,0.05]
[null,null,null,"non applicabile",1,1]
[]
[null,null,null,"rappresentativo della colonna d'acqua (quant)",1]
[null,null,null,"altro",10]
[]
[null,null,null,"SI",1]
[null,null,null,"NO",15]
[null,null,null,"NON SO",15]
[]
[null,null,null,"alto potere filtrante",5]
[null,null,null,"basso potere filtrante",1]
[null,null,null,"non so",3]
[]
[null,null,null,"< 5 gg",1]
[null,null,null,"5-10",10]
[null,null,null,"> 10 gg",20]
[null,null,null,"non so",30]
[]
[null,null,null,"PT",10]
[null,null,null,"confronti inter-lab",5]
[null,null,null,"altro",3]
[null,null,null,"specificare",1]
[null,null,null,"non applicabile",1]
[null,null,null,"LOCALI",10]
[null,null,null,"NAZIONALI",7]
[null,null,null,"EUROPEI",3]
[null,null,null,"ALTRO",1]
[]
[]
[null,null,null,"valori soglia per il fitoplancton e/o rafforzamento frequenza di campionamento fitoplancton",5,null,null,null,null,"si",10,0.1]
[null,null,null,"valori soglia per biotossine",5,null,null,null,null,"no",0.05,5]
[null,null,null,"entrambi",50,null,null,null,null,"non si dispongono ancora di dati sufficienti",1,1]
[null,null,null,"altro",3,null,null,null,null,"non so",0.5,0.1]
[null,null,null,null,null,null,null,null,null,"non applicabile",null,1]
[null,null,null,"mancata individuazione della tossicità",0.1,null,null,null,"sono stati segnalati dalla ASL",null,0.01]
[null,null,null,"prodotto non ritirato",0.5,null,null,null,"allert da controllI produzione post-primaria (RASFF)",null,1]
[null,null,null,"mancata comunicazione della tossicità",0.5]
[null,null,null,"altro",0.5]
[null,null,null,"nessun evento",1]
[]
[null,null,null,"settimanale",1]
[null,null,null,"quindicinale",0.8]
[null,null,null,"mensile",0.5]
[null,null,null,"compatibilmente con il periodo di sospensione",1]
[]
[]
[null,null,null,"ultimi 6 mesi",0.01]
[null,null,null,"ultimo anno",0.1]
[null,null,null,"non so",1]
[null,null,null,"nessun evento",1]
[null,null,null,"non applicabile",1]
[]
[]
[null,null,null,"elenco specie"]
[null,null,null,"mitili"]
[null,null,null,"vongole"]
[null,null,null,"cappesante"]
[]
[null,null,null,"elenco allevamenti_tipologie"]
[null,null,null,"a resta"]
[null,null,null,"a lanterna"]
[null,null,null,"long pile"]
[null,null,null,"banchi naturali"]
[]
[null,null,null,"classificazione dell'AREA"]
[null,null,null,"A"]
[null,null,null,"B"]
[null,null,null,"area non classificata"]
[]
[]
[null,null,null,"il sistema di Early Warning è efficace"]
[null,null,null,"non è necessario modificare il PdM ma rivedere la frequenza di campionamento"]
[]
[]
[]
[null,null,null,"SI (per BM e Fito)",0.5]
[null,null,null,"NO (per entrambe le matrici)",100]
[null,null,null,"solo BM regolamentate",50,"con opzione"]
[null,null,null,"solo Fito",100]

{"sheet":"modifiche","index":11,"n_rows":8,"n_cols":7,"rows_kept":8,"cut":false,"hidden":true,"merged":[]}
[]
[]
[]
[null,null,"da inserrie:"]
[]
[null,null,"VdR piano"]
[null,null,"inserire"]
[null,null,"titpologia ssitema di allevamento",null,null,null,"a resta; lanterna; "]

{"sheet":"RIASSUNTO","index":12,"n_rows":27,"n_cols":14,"rows_kept":27,"cut":false,"hidden":true,"merged":[]}
[]
[]
[]
[]
[]
[null,null,null,null,"GRAVITA","PROBABILITA","RIVELABILITA'",null,null,null,null,"GRAVITA","PROBABILITA","RIVELABILITA'"]
[null,null,10,"10-9","ESTREMO","FREQUENTE","QUASI IMPOSSIBILE",null,null,null,10,"ESTREMO","FREQUENTE","QUASI IMPOSSIBILE"]
[null,null,9,null,"ESTREMO","FREQUENTE","QUASI IMPOSSIBILE",null,null,null,9,"ESTREMO","FREQUENTE","QUASI IMPOSSIBILE"]
[null,null,8,"8-7","MOLTO ALTO","PROBABILE","REMOTA",null,null,null,8,"MOLTO ALTO","PROBABILE","REMOTA"]
[null,null,7,null,"MOLTO ALTO","PROBABILE","REMOTA",null,null,null,7,"MOLTO ALTO","PROBABILE","REMOTA"]
[null,null,6,"6-5","ALTO","OCCASIONALE","BASSA",null,null,null,6,"ALTO","OCCASIONALE","BASSA"]
[null,null,5,null,"ALTO","OCCASIONALE","BASSA",null,null,null,5,"ALTO","OCCASIONALE","BASSA"]
[null,null,4,"4-3","MODERATO","REMOTA","ALTA",null,null,null,4,"MODERATO","REMOTA","ALTA"]
[null,null,3,null,"MODERATO","REMOTA","ALTA",null,null,null,3,"MODERATO","REMOTA","ALTA"]
[null,null,2,"2-1","LIEVE","IMPROBABILE","QUASI CERTA",null,null,null,2,"LIEVE","IMPROBABILE","QUASI CERTA"]
[null,null,1,null,"LIEVE","IMPROBABILE","QUASI CERTA",null,null,null,1,"LIEVE","IMPROBABILE","QUASI CERTA"]
[]
[]
[null,null,"0-150","BASSO"]
[null,null,"151-300","MEDIO"]
[null,null,"301-648","MEDIO ALTO"]
[null,null,"> 648","ALTO"]
[]
[]
[null,null,"0,1-3000",0.1]
[null,null,"3001-10000",3000]
[null,null,">10000",10000]